Cogmind - Beta 13 *** ADVENTURER MODE // 2024.05.05 @ 06:11:44 Player: Shippujinlai Result: Destroyed by Y-54 Guardian with Gatling Laser Performance ------------- Evolutions (0) 0 Regions Visited (3) 600 Robots Destroyed (32) 160 Value Destroyed (680) 680 Prototype IDs (5) 100 Alien Tech Used (0) 0 Bonus (41) 41 TOTAL SCORE: 1581 Bonus ------- High Alert Combat Kills 41 Cogmind --------- Core Integrity 0/250 Matter 300/300 Energy 180/250 System Corruption 4% Temperature Cool (29) Movement Treading (160) Location -7/Recycling Parts ------- > --- POWER (1) -------- Ion Engine > --- PROPULSION (2) --- Light Treads Light Treads > --- UTILITY (2) ------ Large Storage Unit Signal Interpreter > --- WEAPON (2) ------- Light EM Pulse Cannon Light EM Pulse Cannon > --- INVENTORY (15) --- Compact Wheel Compact Wheel Scrap Engine Sensor Array Improved Terrain Scanner Seismic Detector Makeshift Light Armor Plating Makeshift System Shield Greatsword Peak State ------------ > --- POWER ------------ Ion Engine > --- PROPULSION ------- Light Treads Light Treads > --- UTILITY ---------- Large Storage Unit Signal Interpreter > --- WEAPON ----------- Particle Gun Plasma Cannon > --- INVENTORY -------- Compact Wheel Compact Wheel Scrap Engine Sensor Array Improved Terrain Scanner Seismic Detector Makeshift Light Armor Plating Makeshift System Shield [Rating: 14] Favorites ----------- Power Light Ion Engine Engine Light Ion Engine Propulsion Compact Wheel Treads Light Treads Wheel Compact Wheel Utility Large Storage Unit Device Improved Terrain Scanner Storage Large Storage Unit Processor Signal Interpreter Weapon Medium Laser Energy Gun Medium Laser Energy Cannon Light EM Pulse Cannon Build | -11 -10 -10 -7 ------- Run | Yrd Mat Sub Rec Slots Evolved . | . . . . Power . | . . . . Propulsion . | . . . . Utility . | . . . . Weapon . | . . . . Parts Attached 25 | 7 5 3 10 Power 3 | 1 1 . 1 Engine 3 | 1 1 . 1 Core . | . . . . Reactor . | . . . . Propulsion 6 | 2 1 1 2 Treads 3 | . . 1 2 Leg . | . . . . Wheel 3 | 2 1 . . Hover . | . . . . Flight . | . . . . Utility 4 | 2 2 . . Device 1 | 1 . . . Storage 2 | 1 1 . . Processor 1 | . 1 . . Hackware . | . . . . Protection . | . . . . Artifact . | . . . . Weapon 12 | 2 1 2 7 Energy Gun 8 | 2 1 2 3 Energy Cannon 4 | . . . 4 Ballistic Gun . | . . . . Ballistic Cannon . | . . . . Launcher . | . . . . Special Weapon . | . . . . Impact Weapon . | . . . . Slashing Weapon . | . . . . Piercing Weapon . | . . . . Special Melee Weapon . | . . . . Unidentified Prototypes . | . . . . Corrupted Parts 1 | . . 1 . System Corruption 3 | . . 3 . Parts Lost 9 | . 1 5 3 Power 2 | . 1 1 . Propulsion 1 | . . 1 . Utility . | . . . . Weapon 6 | . . 3 3 Highest Loss Streak 4 | . 1 4 2 To Critical Strikes . | . . . . Average Slot Usage (%) 95 | . 99 96 91 Engine 12 | . 13 13 9 Treads 9 | . . . 26 Wheel 18 | . 28 27 1 Device 1 | . 5 . . Storage 14 | . 14 14 14 Processor 12 | . 9 14 14 Energy Gun 19 | . 28 24 7 Energy Cannon 5 | . . . 16 Naked Turns . | . . . . Heaviest Build 35 | 13 28 29 35 Greatest Support 40 | 32 32 32 40 Greatest Overweight (x) 1 | . . 1 1 Average Overweight (x) . | . . . . Largest Inventory Capacity 15 | 8 15 15 15 Average Capacity 14 | 7 14 15 15 Most Carried 12 | 4 7 9 12 Average Carried 7 | 2 5 8 10 Final Capacity 15 | 8 15 15 15 Final Carried 11 | 4 7 8 11 Class Distribution -------------------- 87% | Mutant 12% | Commander-Mutant Dominant Class ---------------- Mutant | -10/Materials Mutant | -10/Subcaves Mutant | -7/Recycling Resources | -11 -10 -10 -7 ----------- Run | Yrd Mat Sub Rec Matter Collected 473 | 270 40 48 115 Remotely . | . . . . Salvage Created 1427 | 228 458 99 642 Parts 80 | 20 29 6 25 Haulers Intercepted 1 | . 1 . . Recyclers Shooed 4 | . 3 . 1 Parts Field Recycled . | . . . . Retrieved Matter . | . . . . Parts Self-Destructed 7 | . . 7 . Prevented . | . . . . Kills | -11 -10 -10 -7 ------- Run | Yrd Mat Sub Rec Combat Hostiles Destroyed 14 | . 5 3 6 Guns 11 | . 5 3 3 Classes Destroyed 11 | 3 5 1 2 Worker 3 | 2 1 . . Builder 4 | . 3 . 1 Tunneler 5 | 4 1 . . Hauler 1 | . 1 . . Recycler 3 | 1 2 . . Watcher 2 | . 2 . . Swarmer 4 | . 3 1 . Grunt 3 | . 2 . 1 Sentry 3 | . . . 3 Programmer 2 | . . . 2 Subdweller 2 | . . 2 . Best Kill Streak 7 | 4 7 2 2 Combat Bots Only 3 | . 3 2 2 Max Kills in Single Turn 1 | 1 1 1 1 Gunslinging . | . . . . Exploded . | . . . . Melee . | . . . . Uniques/NPCs Destroyed . | . . . . Combat | -11 -10 -10 -7 -------- Run | Yrd Mat Sub Rec Hostile Shots Fired 253 | . 19 115 119 Missed 118 | . 8 59 51 Damage Taken 1041 | . 149 445 447 Core 253 | . 28 168 57 Absorbed by Shields 54 | . . . 54 Ignored by Resistances 342 | . 47 134 161 Core Remaining (%) 100 | 100 . . . Volleys Fired 90 | 9 40 16 25 Largest 2 | 2 2 2 2 Hottest 145 | 90 90 110 145 Shots Fired 163 | 18 74 23 48 Gun 133 | 18 74 23 18 Cannon 30 | . . . 30 Launcher . | . . . . Special . | . . . . Kinetic . | . . . . Thermal 80 | 9 34 18 19 Explosive . | . . . . Electromagnetic 83 | 9 40 5 29 Robot Hit Streak 35 | 9 19 9 35 Robot Miss Streak 2 | 2 2 1 1 Penetration Max . | . . . . Secondary Targets 2 | . 2 . . Max Gunslinging Chain 1 | . 1 . . Shots Hit Robots 121 | 11 52 18 40 Core Hits 48 | 7 19 5 17 Critical Kills . | . . . . Critical Parts Destroyed . | . . . . Critical Strikes 6 | . 4 1 1 Burn 4 | . 2 1 1 Corrupt 2 | . 2 . . Melee Attacks . | . . . . Impact . | . . . . Slashing . | . . . . Piercing . | . . . . Sneak Attacks . | . . . . Combat Hostiles . | . . . . Follow-up Attacks . | . . . . Damage Inflicted 2178 | 152 954 249 823 Guns 1412 | 152 720 249 291 Cannons 532 | . . . 532 Explosions 234 | . 234 . . Melee . | . . . . Ramming . | . . . . Kinetic . | . . . . Thermal 955 | 50 408 206 291 Explosive . | . . . . Electromagnetic 1223 | 102 546 43 532 Impact . | . . . . Slashing . | . . . . Piercing . | . . . . Highest Corruption 4 | . . 3 4 Average Corruption 3 | . . 3 3 Corruption Purged . | . . . . Corruption Blocked . | . . . . Effects 24 | . . 11 13 Message Errors 10 | . . 5 5 Matter Fused 3 | . . 1 2 Energy Discharges 4 | . . 2 2 Parts Rejected 1 | . . . 1 Data Loss (minor) 3 | . . 1 2 Data Loss (major) 1 | . . . 1 Misfires 2 | . . 2 . Overload Shots . | . . . . Overflow Damage 9 | . . . 9 Projectiles 9 | . . . 9 Explosions . | . . . . Melee . | . . . . Knockbacks . | . . . . Impact . | . . . . Kinetic . | . . . . Secondary . | . . . . Self-Inflicted Damage 56 | . 56 . . Shots 3 | . 3 . . Rammed . | . . . . Targets Rammed . | . . . . Kicked . | . . . . Crushed . | . . . . Highest Temperature 255 | 90 248 . 255 Average Temperature 80 | 31 88 . 84 Received Heat Transfer 447 | . 48 228 171 Siege Activations . | . . . . Robots Corrupted 3 | . . . 3 Combat Hostiles 3 | . . . 3 Parts Fried 6 | . 4 . 2 Impact Corruptions . | . . . . Robots Melted . | . . . . Combat Hostiles . | . . . . Parts Melted 6 | 1 3 1 1 Heat Transferred 2508 | 148 1175 556 629 Parts Sabotaged . | . . . . Parts Stolen . | . . . . Parts Stripped . | . . . . Power Chain Reactions 4 | . 4 . . Alert | -11 -10 -10 -7 ------- Run | Yrd Mat Sub Rec Peak Influence 484 | 35 279 . 484 Initial 344 | . 19 . 344 Average 239 | 13 139 . 375 Maximum Alert Level 2 | . 1 . 2 Low Security (%) 41 | 100 70 . 3 Level 1 39 | . 29 . 54 Level 2 19 | . . . 42 Level 3 . | . . . . Level 4 . | . . . . Level 5 . | . . . . High Security . | . . . . Max Security . | . . . . Squads Dispatched 1 | . 1 . . Investigation 1 | . 1 . . Extermination . | . . . . Reinforcement . | . . . . Assault . | . . . . Garrison . | . . . . Intercept . | . . . . Searches Triggered . | . . . . Construction Impeded . | . . . . Haulers Reinforced . | . . . . Active Scanning Responses . | . . . . Cargo Convoy Interrupts . | . . . . Stealth | -11 -10 -10 -7 --------- Run | Yrd Mat Sub Rec Distress Signals 1 | . . . 1 Communications Jammed . | . . . . Distress Signals . | . . . . Times Spotted 81 | . 9 64 8 Peak Tracking Total 6 | . 3 6 2 Tactical Retreats 6 | . . 5 1 Traps | -11 -10 -10 -7 ------- Run | Yrd Mat Sub Rec Traps Triggered 2 | . 2 . . Indirectly . | . . . . Trap Hack Attempts . | . . . . Triggered . | . . . . Disarmed . | . . . . Reprogrammed . | . . . . Reused . | . . . . Traps Extracted . | . . . . Installed . | . . . . Triggered . | . . . . Machines | -11 -10 -10 -7 ---------- Run | Yrd Mat Sub Rec Machines Disabled 4 | . 4 . . Max in Single Turn 2 | . 2 . . Machines Repaired . | . . . . Machines Dismantled . | . . . . Machines Sabotaged . | . . . . Overloaded Fab Kills . | . . . . Hacking | -11 -10 -10 -7 --------- Run | Yrd Mat Sub Rec Machines Accessed 12 | . 3 . 9 Terminals 8 | . 3 . 5 Fabricators . | . . . . Repair Stations . | . . . . Recycling Units 4 | . . . 4 Scanalyzers . | . . . . Garrison Access . | . . . . Total Hacks 32 | . 11 . 21 Successful 19 | . 6 . 13 Failed 13 | . 5 . 8 Catastrophic 1 | . . . 1 Database Lockouts . | . . . . Manual 8 | . 3 . 5 Terminals 26 | . 11 . 15 Fabricators . | . . . . Repair Stations . | . . . . Recycling Units 6 | . . . 6 Scanalyzers . | . . . . Garrison Access . | . . . . Terminal Hacks 9 | . 3 . 6 Record 1 | . 1 . . Robot Schematic 1 | . . . 1 Prototype ID Bank 2 | . 1 . 1 Alert Level 1 | . 1 . . Investigation Status 1 | . . . 1 Hauler Manifests 1 | . . . 1 Registered Components 1 | . . . 1 Registered Prototypes 1 | . . . 1 Fabricator Hacks . | . . . . Repair Station Hacks . | . . . . Recycling Unit Hacks 3 | . . . 3 Retrieve Components 3 | . . . 3 Scanalyzer . | . . . . Garrison Access Hacks . | . . . . Unauthorized Hacks 7 | . 3 . 4 Terminals 7 | . 3 . 4 Botnet 7 | . 3 . 4 Fabricators . | . . . . Repair Stations . | . . . . Recycling Units . | . . . . Scanalyzers . | . . . . Garrison Access . | . . . . Data Cores Recovered . | . . . . Used . | . . . . Hacking Detections 9 | . 3 . 6 Full Trace Events 2 | . . . 2 Feedback Events 1 | . . . 1 Corruption 1 | . . . 1 Feedback Blocked . | . . . . Robot Schematics Acquired 1 | . . . 1 Robots Built . | . . . . Authchips . | . . . . Time . | . . . . Total Robot Build Rating . | . . . . Part Schematics Acquired . | . . . . Parts Built . | . . . . Authchips . | . . . . Time . | . . . . Total Part Build Rating . | . . . . Parts Repaired . | . . . . Time . | . . . . Parts Recycled . | . . . . Recycled Matter . | . . . . Retrieved Matter . | . . . . Retrieved Components 7 | . . . 7 Parts Scanalyzed . | . . . . Part Schematics Acquired . | . . . . Parts Damaged . | . . . . Bothacking | -11 -10 -10 -7 ------------ Run | Yrd Mat Sub Rec Used RIF Installer . | . . . . Robots Hacked . | . . . . Non-combat . | . . . . Combat . | . . . . Robot Hacks Applied . | . . . . Relay Couplers Released . | . . . . Fabnet Peak Effective % . | . . . . Robots Rewired 6 | . . . 6 Allies Hacked . | . . . . Hacks Repelled . | . . . . Allies | -11 -10 -10 -7 -------- Run | Yrd Mat Sub Rec Total Allies 6 | . . . 6 Largest Group 6 | . . . 6 Highest-Rated Group 92 | . . . 92 Highest-Rated Ally 40 | . . . 40 Total Orders 5 | . . . 5 DROP 2 | . . . 2 PICKUP 1 | . . . 1 COLLECT 2 | . . . 2 Ally Attacks . | . . . . Total Damage . | . . . . Kills . | . . . . Allies Corrupted . | . . . . Allies Melted . | . . . . Intel | -11 -10 -10 -7 ------- Run | Yrd Mat Sub Rec Robot Analysis Total . | . . . . Derelict Logs Recovered 2 | . . 2 . Drone Launches . | . . . . Drone Recoveries . | . . . . Exploration | -11 -10 -10 -7 ------------- Run | Yrd Mat Sub Rec Turns Passed 2456 | 126 833 672 825 Spaces Moved 1517 | 87 424 596 410 Core 3 | 3 . . . Treads 422 | . . 12 410 Legs . | . . . . Wheels 1092 | 84 424 584 . Hover . | . . . . Flight . | . . . . Fastest Speed 50 | 50 100 100 160 Average Speed 116 | 98 100 101 160 Slowest Speed 240 | 100 100 160 240 Overloaded Moves . | . . . . Propulsion Burnouts . | . . . . Robots Hopped . | . . . . Cave-ins Triggered . | . . . . Exploration Rate (%) 43 | 4 67 40 62 Regions Visited 3 Branch Regions 2 Pre-discovered Areas 1 | . . 1 . Known Exits Taken 2 | . 1 1 . Unknown Exits Taken 1 | 1 . . . Scrap Searched . | . . . . Spaces Dug . | . . . . Terrain Destroyed 3 | . 2 . 1 Melee . | . . . . Projectile 1 | . . . 1 AOE 2 | . 2 . . Terrain Rammed . | . . . . Walls Destroyed . | . . . . Machines Disabled . | . . . . Actions | -11 -10 -10 -7 --------- Run | Yrd Mat Sub Rec Total 2034 | 106 758 644 526 Wait 331 | . 284 27 20 Move 1514 | 86 423 595 410 Hop . | . . . . Pick Up 13 | 4 4 2 3 Fast Attach 17 | 7 2 1 7 Attach 5 | . 1 2 2 Detach 1 | . . 1 . Swap 3 | . 2 . 1 Drop 4 | . 2 . 2 Fire 90 | 9 40 16 25 Melee . | . . . . Ram . | . . . . Kick . | . . . . Crush . | . . . . Escape Stasis . | . . . . Rewire 56 | . . . 56 Trap . | . . . . Miscellaneous . | . . . . Route ------- -11/Scrapyard -10/Materials (discovered 3 exits: *Mat / *Min / *Sub) -10/Subcaves (discovered 2 exits: *Mat / *Rec) -7/Recycling History --------- Turn | Location | Event 19 | -11/Scrapyard | Discovered new exit (range 15) 127 | -11/Scrapyard | Entered Materials 309 | -10/Materials | Build established: Mutant 463 | -10/Materials | Discovered new exit (range 15) 480 | -10/Materials | Identified exit to Mines 621 | -10/Materials | Discovered new exit (range 16) 650 | -10/Materials | Identified exit to Materials 941 | -10/Materials | Discovered new exit (range 5) 959 | -10/Materials | Identified exit to Subcaves 960 | -10/Materials | Entered Subcaves 964 | -10/Subcaves | Learned location of 1 exit from Materials 972 | -10/Subcaves | A swath of the cavern ceiling suddenly collapsed 1055 | -10/Subcaves | Discovered new exit (range 16) 1106 | -10/Subcaves | Identified exit to Materials 1122 | -10/Subcaves | Learned location of Zion (-7) 1122 | -10/Subcaves | Met a Zionite searching for "candidates" 1573 | -10/Subcaves | Learned Materials trap positions 1597 | -10/Subcaves | Discovered new exit (range 13) 1613 | -10/Subcaves | Core integrity fell below 50% 1631 | -10/Subcaves | Identified exit to Recycling 1632 | -10/Subcaves | Entered Recycling 1642 | -7/Recycling | Lost 4 parts (1p1n2w) 1645 | -7/Recycling | Found Scrap Engine 1847 | -7/Recycling | Core integrity fell below 20% 2216 | -7/Recycling | Build established: Commander-Mutant 2287 | -7/Recycling | Lost 6 allies 2457 | -7/Recycling | Destroyed by Y-54 Guardian with Gatling Laser Last Messages --------------- 02279_ R-06 Scavenger inserts Med. Storage Unit into recycling unit. 02288_ R-06 Scavenger inserts Component Analysis Suite into recycling unit. 02323_ SEFMUT>Retrieve(Components) Retrieving 3 components... Xenon Bombardment Thruster Imp. Carbon-fiber Leg Core Analyzer 02349_ &S6VUZOFSJQWXC ZV:N QZHIRNC 02413_ E%U#E4OW8T5:52EAH>Retrieve(Components) Retrieving 1 components... Hvy. Laser 02440_ System corrupted: Component data lost. 02442_ Acquired 10 matter. 02456_ Y-54 Guardian springs to life. Map ----- +----------------------------------------------------+ | | | ?????????????????????????????????????????????????? | | ?????????????????????????????????????????????????? | | ?????????????????????????????????????????????????? | | ?????????????????????????????????????????????????? | | ?????????????????????????????????????????????????? | | ?????????????????????????????????????????????????? | | ?????????????????????????????????????????????????? | | ?????????????????????????????????????????????????? | | ?????????????????????????????????????????????????? | | ??????????????????##############?????????????????? | | ??????????????????# ! #?????????????????? | | ??????????????????# ! #?????????????????? | | ??????????????????# #???????????##????? | | ??????????????????# [ !#???????????# ##### | | ??????????????????# % %#???????????# | | ??????????????????# ] #???????????# | | ??????????????????# ! % #???????????# | | ??????????????????# #??????????## | | ??????????????????# #??????????# | | ??????????????????# #???????????# | | ??????????????????# ] ! ######??????# | | ??????????????????# ! ##"""#??????# | | ??????????????????########;######"Y"#############+ | | ?????????????????????## # | | ?????????????????????# Y@ [ | | ?????????????????????# | | ?????????????????????# ###########+########## | | ??????????????????? #????????# #?? | | ??????????????????#### #????????# ##?? | | ?????????????????????# #????????# #??? | | ?????????????????????# #????????# #??? | | ?????????????????????# +????????# #??? | | ?????????????????????#r #????????# #??? | | ????????????????????? u#????????# #??? | | ???????????????????? #????????# #??? | | ???????????????????# #????????# #??? | | ???????????????????? #????????### ######??? | | ???????????????????# #???????????##???????? | | ????????????????????? #????????????????????? | | ??????????????????????? ???#####?????????????? | | ???????????????????????????????# #?????????????? | | ?????????????????????????????### #?????????????? | | ?????????????????????????????#!! #?????????????? | | ?????????????????????????????#! #?????????????? | | ?????????????????????????????#!! #?????????????? | | ?????????????????????????????### ##????????????? | | ???????????????????????????????# T#???????##???? | | ???????????????????????????????# ##?????### #### | | ???????????????????????????????# #??????# | +----------------------------------------------------+ Best States ------------- Heat Dissipation 25 Energy Generation 10 Energy Capacity 250 Matter Stores 300 Matter Capacity 300 Sight Range 16 Terrain Scan Range 16 Terrain Scan Density 10 Resistance: KI 20 Resistance: TH 20 Resistance: EX 20 Resistance: EM 20 Resistance: I 20 Resistance: S 20 Resistance: P 20 Evasion (%) 40 Recoil Reduction 2 Offensive Hacking 10 Item Schematics ----------------- None Robot Schematics ------------------ S-27 Virus | -7/Recycling | Hacked Fabricated ------------ Nothing Alien Tech Used ----------------- None Achievements -------------- None Challenges ------------ None Game ------ Seed FissionDamperBoomstick Manual? 0 Play Time 00:24:01 Cumulative 24.3 hours Start 2024.05.05 @ 05:47:43 End 2024.05.05 @ 06:11:44 Sessions 1 Manual Loads 0 Difficulty Adventurer Special Mode None Game No. 17 Rogue 0 Adventurer 17 Explorer 0 Win Type - Total 0 Types 0/0/0/0/0/0/0/0/0 Lore% 15 Gallery% 30 Achievement% 27 Wizard Run 0 Options --------- Layout 1 ASCII 0 Keyboard 0 Movement Mouse Keybinds 0 Fullscreen 0 Font 28/SmallcapsGlow Map View 50x40 Zoom Use 0% Tactical HUD 1 Map Filters NONE Filters NONE Steam 1 RUN: 008a6dca-27f6-4919-8d40-fb1927734141